bitfinex-derivatives/quotes_SOLF0:USTF0_20241011
["timestamp","ask_amount","ask_price","bid_price","bid_amount"]
[1728654670566,2.74902,143.63,143.57,16.7]
[1728654671067,3.4826,143.62,143.59,3.4832]
[1728654671261,2.74902,143.63,143.56,5.88]
[1728654671769,3.4827,143.62,143.58,3.4834]
[1728654671960,2.74902,143.63,143.58,3.4834]
[1728654672157,2.74902,143.63,143.56,5.88]
[1728654672360,3.4827,143.62,143.58,3.4833]
[1728654672561,3.4827,143.62,143.56,5.88]
[1728654672867,6.23132,143.63,143.6,3.4829]
[1728654673260,19.44902,143.63,143.54,5.88]
[1728654673464,3.4828,143.62,143.54,22.58]
[1728654673664,19.44902,143.63,143.54,22.58]
[1728654673971,3.4829,143.61,143.58,3.4834]
[1728654674264,2.74902,143.63,143.56,16.7]
[1728654675162,3.483,143.61,143.58,3.4834]
[1728654675469,2.74902,143.63,143.58,5.88]
[1728654675857,0.12502,143.63,143.58,22.58]
[1728654676061,0.12502,143.63,143.6,16.7]
[1728654676560,0.12502,143.63,143.62,3.4826]
[1728654677056,0.12502,143.69,143.62,22.58]
[1728654677760,0.12502,143.69,143.64,3.4821]
[1728654678168,0.12502,143.69,143.62,5.88]
[1728654678669,16.82502,143.69,143.62,5.88]
[1728654678868,3.4814,143.67,143.62,5.88]
[1728654679069,16.82502,143.69,143.62,5.88]
[1728654679560,3.4817,143.66,143.62,9.3625]
[1728654680170,3.482,143.65,143.61,9.3627]
[1728654680870,3.482,143.65,143.61,5.88]
[1728654681070,3.4817,143.66,143.62,3.4824]
[1728654681573,3.4817,143.66,143.61,5.88]
[1728654681775,3.4817,143.66,143.63,3.4823]
[1728654682071,16.82502,143.69,143.61,5.88]
[1728654682272,3.60602,143.69,143.65,3.4817]
[1728654682769,0.12502,143.69,143.65,3.4817]
[1728654683166,3.4811,143.68,143.65,3.4817]
[1728654683474,0.12502,143.69,143.64,3.482]
[1728654683965,3.4814,143.67,143.64,3.482]
[1728654684766,3.4817,143.66,143.63,9.3622]
[1728654685368,3.4825,143.63,143.6,5.88]
[1728654685669,16.7,143.67,143.6,5.88]
[1728654685871,3.4824,143.63,143.59,3.4832]
[1728654686770,3.4826,143.62,143.59,3.4832]
[1728654687268,3.4827,143.62,143.58,5.88]
[1728654687483,16.7,143.63,143.58,5.88]
[1728654687877,3.4831,143.6,143.58,5.88]
[1728654688171,16.7,143.61,143.57,0.12502]
[1728654688575,3.4835,143.58,143.57,0.12502]
[1728654688973,16.7,143.59,143.57,0.12502]
[1728654689169,2.6908,143.6,143.58,3.4834]
[1728654689364,2.6908,143.6,143.57,0.12502]
[1728654689671,6.174,143.6,143.57,3.60872]
[1728654690066,2.6908,143.6,143.57,0.12502]
[1728654690270,1.3133,143.6,143.58,3.4835]
[1728654691271,1.3133,143.6,143.57,0.12502]
[1728654692380,1.3133,143.6,143.58,3.4834]
[1728654693075,3.4827,143.62,143.57,0.12502]
[1728654693280,16.7,143.63,143.57,6.00502]
[1728654693677,20.1825,143.63,143.59,3.4831]
[1728654694173,16.7,143.63,143.59,3.4831]
[1728654694678,3.4826,143.62,143.59,3.4831]
[1728654696178,16.7,143.63,143.57,6.00502]
[1728654696368,1.4213,143.66,143.59,16.7]
[1728654696879,4.9031,143.66,143.59,16.7]
[1728654697077,1.4213,143.66,143.59,16.7]
[1728654697572,18.1213,143.66,143.57,22.70502]
[1728654697777,18.1213,143.66,143.57,6.00502]
[1728654698280,18.1213,143.66,143.59,3.4833]
[1728654698669,3.4825,143.63,143.59,3.4833]
[1728654699380,3.4828,143.62,143.58,3.4834]
[1728654699576,16.7,143.64,143.58,3.4834]
[1728654699974,16.7,143.64,143.57,9.48862]
[1728654700275,16.7,143.62,143.57,0.12502]
[1728654700481,3.4834,143.59,143.57,6.00502]
[1728654701782,1.4237,143.61,143.57,0.12502]
[1728654702082,1.368,143.6,143.57,0.12502]
[1728654702278,1.4237,143.61,143.57,0.12502]
[1728654702478,1.4151,143.65,143.58,5.88]
[1728654702872,1.4151,143.65,143.62,3.4824]
[1728654703686,4.897,143.65,143.62,3.4824]
[1728654704778,3.4822,143.64,143.58,5.88]
[1728654704982,3.4822,143.64,143.61,3.4826]
[1728654705183,3.4822,143.64,143.58,5.88]
[1728654705482,3.4822,143.64,143.61,3.4826]
[1728654706582,1.4151,143.65,143.58,5.88]
[1728654706785,3.4826,143.63,143.58,5.88]
[1728654707089,18.1151,143.65,143.58,5.88]
[1728654707387,3.4828,143.62,143.59,3.4831]
[1728654707783,18.1151,143.65,143.57,0.12502]
[1728654707784,16.7,143.63,143.57,0.12502]
[1728654707991,6.2205,143.61,143.58,3.4834]
[1728654708993,2.7375,143.61,143.59,3.4833]
[1728654709490,2.7375,143.61,143.57,0.12502]
[1728654710291,6.2205,143.61,143.58,3.4834]
[1728654710483,6.2205,143.61,143.57,0.12502]
[1728654710679,16.7,143.6,143.57,0.12502]
[1728654710880,3.4836,143.58,143.52,5.88]
[1728654711689,3.4836,143.58,143.55,3.4841]
[1728654712191,3.4833,143.59,143.56,3.4839]
[1728654712796,3.4836,143.58,143.55,3.4842]
[1728654713394,3.4839,143.57,143.52,22.58]
[1728654713891,2.7375,143.61,143.54,16.7]
[1728654714487,3.4834,143.59,143.56,3.484]
[1728654714987,2.7375,143.61,143.54,16.7]
[1728654715189,3.4832,143.6,143.57,3.4836]
[1728654715494,2.7375,143.61,143.54,16.7]
[1728654716291,3.4834,143.59,143.56,3.484]
[1728654716592,2.7375,143.61,143.54,16.7]
[1728654716993,3.4832,143.6,143.57,3.4837]
[1728654718193,3.4827,143.62,143.59,3.4831]
[1728654718387,0.12502,143.63,143.59,3.4831]
[1728654718989,3.4827,143.62,143.6,3.483]
[1728654719391,0.12502,143.63,143.56,22.58]
[1728654719788,0.12502,143.63,143.58,16.7]
[1728654720390,0.12502,143.63,143.62,3.4826]
[1728654722195,0.12502,143.63,143.56,5.88]
[1728654722491,0.12502,143.63,143.59,3.4831]
[1728654722699,3.60742,143.63,143.56,5.88]
[1728654723494,0.12502,143.63,143.57,16.7]
[1728654723796,0.12502,143.63,143.56,9.43762805]
[1728654723990,0.12502,143.63,143.58,16.7]
[1728654724193,0.12502,143.63,143.57,16.7]
[1728654724698,3.4829,143.61,143.58,3.4834]
[1728654725095,0.12502,143.63,143.56,5.88]
[1728654725299,3.483,143.61,143.57,3.4837]
[1728654725498,3.483,143.61,143.56,5.88]
[1728654725798,3.483,143.61,143.58,3.4835]
[1728654726193,2.6311,143.62,143.56,5.88]
[1728654726389,0.12502,143.63,143.57,16.7]
[1728654727096,0.12502,143.63,143.58,16.7]
[1728654727599,0.12502,143.63,143.61,3.4826]
[1728654728400,0.12502,143.63,143.62,3.4826]
[1728654730098,3.60732,143.63,143.61,3.4828]
[1728654730291,0.12502,143.63,143.58,5.88]
[1728654730491,16.7,143.62,143.58,5.88]
[1728654730703,3.60742,143.63,143.6,3.483]
[1728654731599,0.12502,143.63,143.6,3.483]
[1728654731799,0.12502,143.63,143.58,9.3634]
[1728654731997,16.7,143.62,143.56,5.88]
[1728654732197,1.4197,143.61,143.56,5.88]
[1728654732399,3.4832,143.6,143.57,3.4837]
[1728654732602,1.4197,143.61,143.56,5.88]
[1728654732807,1.4197,143.61,143.59,3.4833]
[1728654733004,1.4197,143.61,143.56,5.88]
[1728654733507,1.4197,143.61,143.59,3.4832]
[1728654734500,4.8683,143.62,143.59,3.4832]
[1728654735806,1.3856,143.62,143.56,5.88]
[1728654736009,1.3856,143.62,143.6,3.4829]
[1728654736203,1.3856,143.62,143.57,16.7]
[1728654736401,1.3856,143.62,143.61,3.4828]
[1728654736605,0.12502,143.63,143.61,3.4828]
[1728654740410,3.60742,143.63,143.61,3.4828]
[1728654740610,3.60742,143.63,143.6,3.483]
[1728654741000,0.12502,143.63,143.56,5.88]
[1728654741205,16.7,143.62,143.53,16.7]
[1728654741418,16.7,143.61,143.54,5.88]
[1728654741707,3.4834,143.59,143.56,3.4839]
[1728654741916,23.9052,143.61,143.53,5.88]
[1728654742205,3.4837,143.58,143.55,3.4842]
[1728654742800,3.4837,143.58,143.54,3.4844]
[1728654743005,3.4837,143.58,143.53,5.88]
[1728654743307,1.2957,143.59,143.57,3.4838]
[1728654745409,4.779,143.59,143.57,3.4838]
[1728654746414,3.4835,143.58,143.56,3.4839]
[1728654746607,1.2957,143.59,143.53,5.88]
[1728654747112,3.4838,143.57,143.55,3.4842]
[1728654747408,16.7,143.57,143.51,0.12502]
[1728654747913,3.4844,143.55,143.52,3.4849]
[1728654748317,3.4844,143.55,143.51,0.12502]
[1728654748318,16.7,143.55,143.51,0.12502]
[1728654749311,3.4845,143.54,143.52,3.4848]
[1728654749506,3.4845,143.54,143.51,0.12502]
[1728654750107,3.4845,143.54,143.51,3.61022]
[1728654751712,16.7,143.55,143.51,0.12502]
[1728654752117,3.4846,143.54,143.51,0.12502]
[1728654752418,3.4846,143.54,143.51,3.61012]
[1728654754320,3.4846,143.54,143.52,3.4849]
[1728654756515,3.4844,143.55,143.52,3.4849]
[1728654756818,16.7,143.57,143.52,3.4849]
[1728654757017,3.4845,143.55,143.52,3.4849]
[1728654757719,16.7,143.57,143.51,0.12502]
[1728654757907,16.7,143.58,143.51,0.12502]
[1728654758219,7.1757,143.59,143.51,16.82502]
[1728654758519,4.7791,143.59,143.57,3.4837]
[1728654758719,4.7791,143.59,143.52,5.88]
[1728654758720,1.2957,143.59,143.52,5.88]
[1728654758913,4.7792,143.59,143.56,3.4839]
[1728654760013,1.2957,143.59,143.56,3.4839]
[1728654760217,3.4836,143.58,143.56,3.4839]
[1728654760411,1.2957,143.59,143.52,5.88]
[1728654760619,1.2957,143.59,143.57,3.4836]
[1728654760913,4.7792,143.59,143.57,3.4836]
[1728654761126,4.7792,143.59,143.56,3.484]
[1728654761425,1.2957,143.59,143.56,3.484]
[1728654761720,3.4836,143.58,143.56,3.484]
[1728654762811,3.4842,143.56,143.53,3.4846]
[1728654763109,16.7,143.57,143.51,6.00502]
[1728654763621,3.4845,143.55,143.52,3.485]
[1728654763923,3.4846,143.54,143.51,3.61022]
[1728654764317,3.4846,143.54,143.51,0.12502]
[1728654764624,16.7,143.55,143.51,0.12502]
[1728654764821,3.4848,143.53,143.51,0.12502]
[1728654765120,16.7,143.55,143.51,0.12502]
[1728654765319,22.58,143.57,143.51,0.12502]
[1728654766525,22.58,143.57,143.52,3.485]
[1728654768424,16.7,143.55,143.51,3.61012]
[1728654768727,16.7,143.55,143.51,0.12502]
[1728654768924,3.4849,143.53,143.51,0.12502]
[1728654769120,3.4849,143.53,143.51,3.61012]
[1728654769823,3.4849,143.53,143.51,0.12502]
[1728654770221,16.7,143.55,143.51,0.12502]
[1728654770530,3.4848,143.53,143.51,0.12502]
[1728654771823,3.4848,143.53,143.51,3.61022]
[1728654772125,20.1844,143.55,143.51,0.12502]
[1728654772322,5.88,143.57,143.52,3.4848]
[1728654772524,5.88,143.57,143.51,0.12502]
[1728654772723,3.4844,143.55,143.51,0.12502]
[1728654772928,3.4844,143.55,143.52,3.4849]
[1728654773326,5.88,143.57,143.51,0.12502]
[1728654773532,5.88,143.57,143.51,3.61012]
[1728654774537,16.7,143.56,143.51,0.12502]
[1728654775130,3.4847,143.54,143.51,3.61012]
[1728654776237,16.7,143.56,143.51,0.12502]
[1728654776536,3.485,143.52,143.51,0.12502]
[1728654777138,3.4849,143.53,143.51,0.12502]
[1728654777441,16.7,143.54,143.51,0.12502]
[1728654777838,3.4848,143.53,143.51,0.12502]
[1728654778032,16.7,143.54,143.51,0.12502]
[1728654778438,10.7,143.52,143.51,0.12502]
[1728654779842,10.7,143.53,143.51,3.61012]
[1728654780042,10.7,143.52,143.51,0.12502]
[1728654780545,14.185,143.52,143.51,0.12502]
[1728654780744,10.7,143.52,143.46,5.88]
[1728654780949,10.7,143.48,143.46,5.88]
[1728654781147,10.7,143.49,143.46,5.88]
[1728654781742,10.7,143.5,143.46,16.58]
[1728654781938,10.7,143.47,143.45,0.12502]
[1728654782145,14.1863,143.47,143.45,0.12502]
[1728654782441,3.4863,143.47,143.45,0.12502]
[1728654782845,3.4862,143.48,143.45,0.12502]
[1728654783440,3.4864,143.47,143.45,0.12502]
[1728654783647,16.73,143.49,143.45,0.12502]
[1728654784056,3.4862,143.48,143.45,0.12502]
[1728654785247,3.4862,143.48,143.45,3.61152]
[1728654786052,1.3224,143.5,143.48,3.4859]
[1728654786344,1.3224,143.5,143.45,0.12502]
[1728654786345,1.4141,143.51,143.45,0.12502]
[1728654787345,1.4141,143.51,143.46,22.61]
[1728654787548,4.8892,143.55,143.52,3.4849]
[1728654788448,3.4845,143.54,143.52,3.4849]
[1728654790952,1.4049,143.55,143.48,16.73]
[1728654791150,1.4049,143.55,143.54,3.4845]
[1728654792946,1.4049,143.55,143.5,5.88]
[1728654793148,1.4049,143.55,143.53,3.4846]
[1728654794051,1.4049,143.55,143.54,3.4845]
[1728654794555,1.4049,143.55,143.5,5.88]
[1728654795845,3.4845,143.54,143.5,5.88]
[1728654796246,18.1349,143.55,143.51,3.485]
[1728654796557,3.4848,143.53,143.5,5.88]
[1728654796754,16.73,143.53,143.49,3.4855]
[1728654797051,16.73,143.53,143.47,5.88]
[1728654797253,1.4049,143.55,143.5,3.4854]
[1728654797254,18.1349,143.55,143.5,3.4854]
[1728654797456,18.1349,143.55,143.47,5.88]
[1728654797651,1.4049,143.55,143.47,5.88]
[1728654798052,3.4849,143.53,143.47,5.88]
[1728654798355,18.1349,143.55,143.47,5.88]
[1728654798657,0.12502,143.57,143.47,5.88]
[1728654798658,0.12502,143.57,143.5,16.73]
[1728654798950,0.12502,143.57,143.52,16.73]
[1728654799353,3.60882,143.57,143.54,3.4844]
[1728654799553,0.12502,143.57,143.52,16.73]
[1728654800256,0.12502,143.57,143.55,3.4841]
[1728654800461,0.12502,143.57,143.52,16.73]
[1728654800663,0.12502,143.57,143.51,5.88]
[1728654801568,3.60882,143.57,143.54,3.4844]
[1728654801864,0.12502,143.57,143.51,5.88]
[1728654802065,0.12502,143.57,143.52,16.73]
[1728654802463,0.12502,143.57,143.56,3.484]
[1728654806963,0.12502,143.57,143.52,16.73]
[1728654807564,0.12502,143.57,143.56,3.484]
[1728654810865,0.12502,143.57,143.56,14.184]
[1728654815774,0.12502,143.63,143.56,10.7]
[1728654815974,0.12502,143.63,143.61,3.4827]
[1728654816577,0.12502,143.63,143.6,3.483]
[1728654816779,0.12502,143.63,143.59,10.7]
[1728654817274,0.12502,143.63,143.61,10.7]
[1728654817776,3.60752,143.63,143.6,3.4829]
[1728654818074,0.12502,143.63,143.59,16.58]
[1728654818469,0.12502,143.63,143.61,3.4828]
[1728654818676,0.12502,143.63,143.59,5.88]
[1728654818870,10.7,143.62,143.59,5.88]
[1728654819074,14.30742,143.63,143.6,3.4831]
[1728654819476,3.60742,143.63,143.6,3.4831]
[1728654819679,0.12502,143.63,143.59,16.58]
[1728654820179,0.12502,143.63,143.62,3.4826]
[1728654821876,0.12502,143.63,143.62,14.1826]
[1728654824683,14.1812,143.68,143.65,3.4817]
[1728654825474,10.7,143.68,143.65,3.4817]
[1728654825682,14.1814,143.67,143.64,3.482]
[1728654827976,3.4817,143.66,143.64,3.482]
[1728654828381,3.4817,143.66,143.63,9.3423]
[1728654828581,3.482,143.65,143.61,10.7]
[1728654828776,10.7,143.65,143.61,16.56]
[1728654828983,10.7,143.65,143.61,5.86]
[1728654829188,0.12502,143.69,143.64,10.7]
[1728654829488,0.12502,143.81,143.71,10.7]
[1728654829489,0.12502,143.75,143.71,10.7]
[1728654829692,0.12502,143.75,143.71,14.1802]
[1728654829993,0.12502,143.75,143.71,10.7]
[1728654830485,0.12502,143.75,143.7,5.86]
[1728654830686,0.12502,143.75,143.71,3.4802]
[1728654830687,3.60452,143.75,143.71,3.4802]
[1728654830891,0.12502,143.75,143.7,16.56]
[1728654831292,3.4797,143.74,143.71,10.7]
[1728654831490,0.12502,143.75,143.71,10.7]
[1728654831792,3.60462,143.75,143.71,14.1804]
[1728654832398,3.60462,143.75,143.71,3.4804]
[1728654833187,0.12502,143.75,143.71,3.4804]
[1728654833399,3.4797,143.74,143.71,3.4804]
[1728654833899,0.12502,143.75,143.74,3.4797]
[1728654836802,0.12502,143.75,143.74,9.3397]
[1728654838902,379.66723427,143.88,143.74,5.86]
[1728654839103,2.7625,143.84,143.77,3.4788]
[1728654839407,6.17358707,143.84,143.77,3.4788]
[1728654840201,3.4782,143.8,143.77,3.4788]
[1728654840499,6.17358707,143.84,143.75,16.71]
[1728654840703,6.17358707,143.84,143.78,3.4786]
[1728654841004,3.60312,143.81,143.78,3.4786]
[1728654841307,0.12502,143.81,143.74,5.86]
[1728654841504,0.12502,143.87,143.8,16.71]
[1728654841704,0.12502,143.87,143.8,22.57]
[1728654841909,16.83502,143.87,143.79,16.71]
[1728654842097,16.71,143.86,143.76,16.71]
[1728654842300,16.71,143.8,143.75,0.12502]
[1728654842497,4.0513,143.79,143.75,0.12502]
[1728654842897,3.4792,143.77,143.75,0.12502]
[1728654843205,2.677,143.79,143.76,16.71]
[1728654843406,16.71,143.85,143.76,16.71]
[1728654844195,3.4773,143.84,143.78,16.71]
[1728654844400,4.0513,143.86,143.78,22.57]
[1728654844804,4.0513,143.86,143.8,16.71]
[1728654845009,2.677,143.86,143.8,16.71]
[1728654845205,3.4771,143.85,143.82,3.4776]
[1728654845506,2.677,143.86,143.78,22.57]
[1728654846706,19.387,143.86,143.78,5.86]
[1728654846908,3.4777,143.83,143.79,3.4784]
[1728654847097,1.3079,143.85,143.78,5.86]
[1728654847302,3.4782,143.81,143.77,3.4788]
[1728654847505,16.71,143.84,143.76,6.18]
[1728654848010,1.3079,143.85,143.76,6.18]
[1728654848011,3.4777,143.83,143.76,22.89]
[1728654848212,1.3079,143.85,143.76,22.89]
[1728654848511,1.3079,143.85,143.78,3.4786]
[1728654848711,1.3079,143.85,143.76,22.89]
[1728654849015,3.4777,143.83,143.79,3.4784]
[1728654849312,16.71,143.84,143.79,3.4784]
[1728654849512,3.4778,143.82,143.79,3.4784]
[1728654849913,1.3079,143.85,143.81,3.4778]
[1728654850105,4.7851,143.85,143.78,20.12315805]
[1728654850411,0.12502,143.87,143.86,3.4768]
[1728654850711,0.12502,143.87,143.86,9.6568]
[1728654851013,0.12502,143.87,143.86,3.4768]
[1728654851214,0.12502,143.87,143.77,75.4981]
[1728654851409,0.12502,143.87,143.82,16.71]
[1728654851610,0.12502,143.87,143.83,6.18]
[1728654851806,0.12502,143.87,143.84,3.4772]
[1728654852005,0.12502,143.87,143.83,6.18]
[1728654852215,0.12502,143.87,143.84,6.18]
[1728654852412,0.12502,143.87,143.83,6.18]
[1728654852608,0.12502,143.87,143.78,16.71]
[1728654852813,0.12502,143.87,143.79,6.18]
[1728654853009,3.56026664,143.87,143.77,3.53744888]
[1728654853213,16.71,143.86,143.78,6.18]
[1728654853505,0.12502,143.87,143.78,22.89]
[1728654854316,16.71,143.86,143.78,6.18]
[1728654854516,16.71,143.84,143.77,3.4788]
[1728654854721,16.71,143.84,143.77,6.18]
[1728654854919,1.3454,143.83,143.77,6.18]
[1728654855220,3.478,143.81,143.77,6.18]
[1728654855409,3.478,143.81,143.75,16.83502]
[1728654855722,16.71,143.8,143.75,0.12502]
[1728654855913,16.71,143.78,143.75,0.12502]
[1728654856217,3.48,143.73,143.7,3.4804]
[1728654856417,16.71,143.74,143.69,0.12502]
[1728654856916,3.4806,143.71,143.69,0.12502]
[1728654857117,16.71,143.74,143.69,0.12502]
[1728654857518,3.4804,143.71,143.69,0.12502]
[1728654858127,3.4811,143.68,143.63,3.60732]
[1728654858319,3.4811,143.68,143.63,0.12502]
[1728654858320,16.71,143.68,143.63,0.12502]
[1728654858822,20.1912,143.68,143.63,0.12502]
[1728654859023,16.71,143.72,143.63,16.83502]
[1728654859226,6.18,143.7,143.63,16.83502]
[1728654859623,16.71,143.72,143.63,16.83502]
[1728654859926,22.89,143.74,143.65,16.71]
[1728654860320,3.4802,143.72,143.67,3.4812]
[1728654860515,3.4802,143.72,143.65,16.71]
[1728654860711,6.18,143.74,143.65,16.71]
[1728654861118,3.4802,143.72,143.67,3.4812]
[1728654861425,6.18,143.74,143.65,16.71]
[1728654861622,3.48,143.73,143.69,3.4809]
[1728654861921,18.18042,143.75,143.67,16.71]
[1728654861922,1.47042,143.75,143.67,16.71]
[1728654862122,1.47042,143.75,143.72,3.4801]
[1728654862623,1.47042,143.75,143.69,16.71]
[1728654863428,1.47042,143.75,143.71,3.4802]
[1728654864625,1.47042,143.75,143.72,3.4801]
[1728654865724,1.47042,143.75,143.69,16.71]
[1728654865931,1.47042,143.75,143.72,3.4799]
[1728654866131,4.94992,143.75,143.7,6.18]
[1728654866429,4.94992,143.75,143.7,9.6606]
[1728654866624,0.12502,143.75,143.7,6.18]
[1728654866830,0.12502,143.75,143.71,16.71]
[1728654867130,0.12502,143.75,143.72,3.4802]
[1728654867525,0.12502,143.75,143.7,6.18]
[1728654867723,0.12502,143.75,143.72,3.48]
[1728654867924,0.12502,143.75,143.7,6.18]
[1728654868930,0.12502,143.75,143.73,3.4797]
[1728654870735,0.12502,143.75,143.74,3.4797]
[1728654874535,0.12502,143.75,143.73,3.4798]
[1728654874827,0.12502,143.75,143.71,6.18]
[1728654875028,0.12502,143.75,143.74,3.4797]
[1728654876227,0.12502,143.75,143.72,3.4801]
[1728654876432,0.12502,143.75,143.69,16.71]
[1728654876633,0.12502,143.75,143.7,6.18]
[1728654877529,0.12502,143.75,143.72,3.48]
[1728654878033,0.12502,143.75,143.67,17.2131]
[1728654878228,16.71,143.74,143.68,6.38]
[1728654878430,3.4801,143.73,143.68,6.38]
[1728654878629,3.4801,143.73,143.69,3.4807]
[1728654879437,3.4803,143.72,143.68,3.481]
[1728654879940,1.3994,143.73,143.68,3.481]
[1728654880240,1.3994,143.73,143.67,6.38]
[1728654880241,3.4803,143.72,143.67,6.38]
[1728654880541,1.3994,143.73,143.67,6.38]
[1728654881539,4.8794,143.73,143.69,3.4807]
[1728654881740,1.3994,143.73,143.69,3.4807]
[1728654881935,1.3994,143.73,143.67,6.38]
[1728654882137,1.3994,143.73,143.65,16.71]
[1728654882340,16.71,143.72,143.65,6.38]
[1728654882539,3.4809,143.69,143.66,3.4814]
[1728654883544,1.3994,143.73,143.65,23.09]
[1728654883935,1.3994,143.73,143.67,3.4811]
[1728654884239,16.71,143.72,143.65,6.38]
[1728654884435,3.4808,143.7,143.67,3.4814]
[1728654885035,3.481,143.69,143.66,3.4815]
[1728654885240,3.481,143.69,143.63,23.21502]
[1728654885636,16.71,143.72,143.65,3.4816]
[1728654885834,16.71,143.72,143.63,23.21502]
[1728654886545,16.71,143.7,143.63,0.12502]
[1728654886739,3.4813,143.68,143.65,3.4817]
[1728654888443,3.4813,143.68,143.63,0.12502]
[1728654888444,3.4814,143.67,143.64,3.4819]
[1728654889643,3.4816,143.67,143.63,0.12502]
[1728654889845,1.3518,143.68,143.63,0.12502]
[1728654890147,1.3518,143.68,143.66,3.4815]
[1728654890446,1.3518,143.68,143.65,3.4817]
[1728654891145,4.833,143.68,143.65,3.4817]
[1728654891743,1.3518,143.68,143.63,0.12502]
[1728654892246,1.3518,143.68,143.64,16.71]
[1728654892435,1.3518,143.68,143.66,3.4815]
[1728654892634,1.3518,143.68,143.64,16.71]
[1728654893445,1.3518,143.68,143.65,3.4818]
[1728654893749,1.3518,143.68,143.64,16.71]
[1728654894248,4.833,143.68,143.65,3.4817]
[1728654895546,1.3518,143.68,143.63,0.12502]
[1728654897051,1.4077,143.67,143.63,0.12502]
[1728654897344,3.4816,143.66,143.63,3.60722]
[1728654899449,3.482,143.65,143.63,0.12502]
[1728654900249,1.4077,143.67,143.63,0.12502]
[1728654902840,3.4804,143.72,143.65,16.71]
[1728654903046,9.0186,143.73,143.65,16.71]
[1728654903544,3.4805,143.71,143.65,16.71]
[1728654903855,2.6386,143.73,143.71,3.4804]
[1728654904743,2.6386,143.73,143.67,16.71]
[1728654904949,2.6386,143.73,143.71,3.4803]
[1728654905551,2.6386,143.73,143.72,3.4802]
[1728654905852,0.12502,143.75,143.66,6.38]
[1728654905853,0.12502,143.75,143.69,16.71]
[1728654906255,0.12502,143.75,143.72,3.4801]
[1728654906457,3.60462,143.75,143.72,3.4801]
[1728654908053,3.60462,143.75,143.69,16.71]
[1728654908259,0.12502,143.75,143.74,3.4797]
[1728654911153,0.12502,143.75,143.73,3.4798]
[1728654911855,3.4799,143.74,143.71,3.4802]
[1728654912062,3.4799,143.74,143.7,6.26]
[1728654912450,3.4799,143.74,143.71,3.4802]
[1728654912963,3.4799,143.74,143.7,6.26]
[1728654913762,0.12502,143.75,143.7,6.26]
[1728654914558,0.12502,143.75,143.74,3.4797]
[1728654915655,22.97,143.82,143.74,6.26]
[1728654916059,16.71,143.82,143.74,6.26]
[1728654916255,3.60312,143.81,143.74,6.26]
[1728654916460,0.12502,143.81,143.74,6.26]
[1728654916860,0.12502,143.81,143.79,3.4783]
[1728654917259,0.12502,143.81,143.74,9.73721641]
[1728654917458,0.12502,143.81,143.8,3.4782]
[1728654920469,0.12502,143.81,143.79,3.4783]
[1728654921560,0.12502,143.81,143.8,3.4782]
[1728654925074,3.4769,143.86,143.83,3.4773]